bitfinex/quotes_SOLUSD_20250809
["timestamp","ask_amount","ask_price","bid_price","bid_amount"]
[1754710243854,35.88079587,177.68,177.67,0.06]
[1754710246638,37.9839502,177.68,177.67,0.06]
[1754710247032,37.98395018,177.68,177.67,0.06]
[1754710247450,35.88079587,177.68,177.67,0.06]
[1754710252649,37.98660297,177.68,177.67,0.06]
[1754710252861,35.88079587,177.68,177.67,0.06]
[1754710258432,37.98705139,177.68,177.67,0.06]
[1754710258654,35.88079587,177.68,177.67,0.06]
[1754710260154,32.59241859,177.68,177.67,0.06]
[1754710260356,35.88079587,177.68,177.67,0.06]
[1754710260861,32.59241859,177.68,177.67,0.06]
[1754710261063,35.88079587,177.68,177.67,0.06]
[1754710262369,37.98682495,177.68,177.67,0.06]
[1754710264268,35.88079587,177.68,177.67,0.06]
[1754710265172,37.98690274,177.68,177.67,0.06]
[1754710267150,34.69852546,177.68,177.67,0.06]
[1754710267362,37.98690274,177.68,177.67,0.06]
[1754710271373,34.69797949,177.68,177.67,0.06]
[1754710274372,32.59241859,177.68,177.67,0.06]
[1754710275953,34.69809433,177.68,177.67,0.06]
[1754710282492,32.59241859,177.68,177.67,0.06]
[1754710283081,35.88079587,177.68,177.67,0.06]
[1754710284588,37.98560666,177.68,177.67,0.06]
[1754710286668,40.24084366,177.68,177.67,0.06]
[1754710286869,37.98560666,177.68,177.67,0.06]
[1754710287890,40.24084366,177.68,177.67,0.06]
[1754710288487,37.98560666,177.68,177.67,0.06]
[1754710293583,12.12776823,177.68,177.67,0.06]
[1754710293788,15.83400637,177.68,177.67,0.06]
[1754710293996,14.38325923,177.68,177.67,0.06]
[1754710297282,19.12238365,177.68,177.67,0.06]
[1754710298183,14.38325923,177.68,177.67,0.06]
[1754710299302,34.22859922,177.68,177.67,1e-08]
[1754710299603,0.42648471,177.64,177.63,1e-08]
[1754710299804,60.02588835,177.64,177.63,1e-08]
[1754710300003,60.73588835,177.64,177.63,1e-08]
[1754710300304,65.46143867,177.64,177.63,1e-08]
[1754710300675,67.71769267,177.64,177.63,1e-08]
[1754710301505,73.34705542,177.64,177.63,1e-08]
[1754710302091,73.34097145,177.64,177.63,1e-08]
[1754710302292,26.42648471,177.62,177.61,1e-08]
[1754710302493,67.62364865,177.62,177.61,1e-08]
[1754710302705,71.62202593,177.62,177.61,1e-08]
[1754710303382,69.52486199,177.62,177.61,1e-08]
[1754710303590,75.15485861,177.62,177.61,1e-08]
[1754710304612,77.41136761,177.62,177.61,1e-08]
[1754710318109,77.44136761,177.62,177.61,1e-08]
[1754710321624,26.42648471,177.59,177.57,0.06]
[1754710321802,68.83486199,177.59,177.57,0.06]
[1754710322007,69.54486199,177.59,177.57,0.06]
[1754710322324,77.43269967,177.59,177.57,0.06]
[1754710331829,92.53891524,177.59,177.58,1e-08]
[1754710332026,89.25053796,177.59,177.58,1e-08]
[1754710332236,92.53891524,177.59,177.58,1e-08]
[1754710335121,94.63132621,177.59,177.58,1e-08]
[1754710335445,107.67941447,177.59,177.58,1e-08]
[1754710336417,112.38752007,177.59,177.58,1e-08]
[1754710336618,107.67941447,177.59,177.58,1e-08]
[1754710337130,112.38752007,177.59,177.58,1e-08]
[1754710337327,107.67941447,177.59,177.58,1e-08]
[1754710338145,112.38752007,177.59,177.58,1e-08]
[1754710339338,125.54102919,177.59,177.58,1e-08]
[1754710339543,15.53270028,177.58,177.57,0.06]
[1754710339725,34.75699765,177.58,177.57,0.06]
[1754710340118,37.01414265,177.58,177.57,0.06]
[1754710340444,23.86063353,177.58,177.57,0.06]
[1754710341427,29.49189831,177.58,177.57,0.06]
[1754710341946,27.39948734,177.58,177.57,0.06]
[1754710342148,29.4938071,177.58,177.57,0.06]
[1754710342725,28.8038071,177.58,177.57,0.06]
[1754710343124,29.4938071,177.58,177.57,0.06]
[1754710343325,67.9238071,177.58,177.57,0.5]
[1754710343942,67.9238071,177.58,177.57,0.06]
[1754710344146,64.63542982,177.58,177.57,0.06]
[1754710344640,67.9238071,177.58,177.57,0.06]
[1754710345235,68.6138071,177.58,177.57,0.06]
[1754710345440,73.3219127,177.58,177.57,0.06]
[1754710347659,72.6319127,177.58,177.57,0.06]
[1754710348256,67.9238071,177.58,177.57,0.06]
[1754710348555,29.4938071,177.58,177.57,0.06]
[1754710348751,68.6138071,177.58,177.57,0.06]
[1754710349129,29.4938071,177.58,177.57,0.06]
[1754710349330,68.6138071,177.58,177.57,0.06]
[1754710349732,29.4938071,177.58,177.57,0.06]
[1754710349950,68.6138071,177.58,177.57,0.06]
[1754710350430,29.4938071,177.58,177.57,0.06]
[1754710350633,68.6138071,177.58,177.57,0.06]
[1754710351033,27.2366621,177.58,177.57,0.06]
[1754710351226,71.0647677,177.58,177.57,0.06]
[1754710358160,66.3566621,177.58,177.57,0.06]
[1754710358830,70.08369929,177.58,177.56,0.06]
[1754710359055,11.248713,177.57,177.56,0.06]
[1754710360055,16.88029491,177.57,177.56,0.06]
[1754710361968,13.59191763,177.57,177.56,0.06]
[1754710362166,16.88029491,177.57,177.56,0.06]
[1754710363666,27.60988142,177.57,177.56,0.06]
[1754710365771,27.89861267,177.57,177.56,0.5]
[1754710365950,63.48907695,177.57,177.56,0.5]
[1754710366157,63.63123852,177.57,177.56,0.5]
[1754710366354,65.73069834,177.57,177.56,0.06]
[1754710366554,66.01502148,177.57,177.56,0.5]
[1754710369150,62.7266442,177.57,177.56,0.5]
[1754710369351,66.01502148,177.57,177.56,0.5]
[1754710370254,66.01502148,177.57,177.56,0.06]
[1754710370762,85.84483029,177.57,177.56,0.06]
[1754710370972,86.56483029,177.57,177.56,0.06]
[1754710372075,0.42648471,177.56,177.55,0.06]
[1754710372255,12.12118379,177.56,177.55,0.06]
[1754710372457,12.84118379,177.56,177.55,0.06]
[1754710372665,9.55280651,177.56,177.55,0.06]
[1754710372867,18.47308286,177.56,177.55,0.06]
[1754710374876,18.47308286,177.56,177.54,0.06]
[1754710374877,15.10621557,177.55,177.54,0.06]
[1754710375060,41.53270028,177.52,177.51,0.06]
[1754710375379,90.76868787,177.52,177.51,0.06]
[1754710375576,91.48868787,177.52,177.51,0.06]
[1754710375766,88.20031059,177.52,177.51,0.06]
[1754710375953,91.48868787,177.52,177.51,0.06]
[1754710376554,75.6624723,177.52,177.51,0.06]
[1754710376880,70.93432181,177.52,177.51,0.5]
[1754710377066,74.46803008,177.52,177.51,0.5]
[1754710377581,76.5686279,177.52,177.51,0.5]
[1754710377886,74.46803008,177.52,177.51,0.5]
[1754710378179,71.1796528,177.52,177.51,0.5]
[1754710378876,39.40432314,177.52,177.51,0.5]
[1754710379282,0.28432314,177.52,177.51,0.5]
[1754710382378,0.28432314,177.52,177.51,3.78837728]
[1754710384869,15.47911776,177.57,177.51,9.42186271]
[1754710385080,15.47911776,177.57,177.56,3.28837728]
[1754710385279,15.7634409,177.57,177.56,3.72837728]
[1754710385963,15.7634409,177.57,177.56,0.44]
[1754710386176,15.47911776,177.57,177.56,3.72837728]
[1754710386366,15.7634409,177.57,177.56,3.72837728]
[1754710386567,16.16911776,177.57,177.53,3.28837728]
[1754710386787,0.97432314,177.56,177.53,3.28837728]
[1754710387485,0.28432314,177.56,177.53,3.72837728]
[1754710389691,5.91627647,177.56,177.53,3.28837728]
[1754710389991,6.60627647,177.56,177.53,3.28837728]
[1754710390975,6.60627647,177.56,177.53,3.72837728]
[1754710391178,6.60627647,177.56,177.53,3.28837728]
[1754710392187,0.69,177.55,177.53,3.28837728]
[1754710392690,5.91627647,177.56,177.52,3.28837728]
[1754710392902,0.69,177.54,177.51,0.06]
[1754710393898,0.28432314,177.52,177.51,0.06]
[1754710397490,5.91692344,177.54,177.51,3.34837728]
[1754710397793,0.28432314,177.54,177.51,3.78837728]
[1754710398693,5.91687275,177.54,177.51,3.78837728]
[1754710398987,5.91687275,177.54,177.51,3.34837728]
[1754710399199,6.60687275,177.54,177.51,3.34837728]
[1754710399397,6.60687275,177.54,177.51,0.06]
[1754710399573,6.60687275,177.54,177.51,3.34837728]
[1754710400400,6.60687275,177.54,177.51,0.06]
[1754710400578,5.91687275,177.54,177.51,0.06]
[1754710400772,0.69,177.53,177.51,0.06]
[1754710405202,0.28432314,177.52,177.51,0.06]
[1754710405585,43.54486199,177.52,177.51,0.06]
[1754710406093,58.65107756,177.52,177.51,0.06]
[1754710406295,60.75253815,177.52,177.51,0.06]
[1754710407202,66.38570624,177.52,177.51,0.06]
[1754710408701,68.24579676,177.52,177.51,0.06]
[1754710409408,66.14433617,177.52,177.51,0.06]
[1754710409597,60.99586837,177.52,177.51,0.06]
[1754710409801,66.14433617,177.52,177.51,0.06]
[1754710410005,60.99586837,177.52,177.51,0.06]
[1754710410305,66.14433617,177.52,177.51,0.06]
[1754710412804,68.24414797,177.52,177.51,0.06]
[1754710413003,66.14433617,177.52,177.51,0.06]
[1754710419006,68.24302853,177.52,177.51,0.06]
[1754710419213,68.24238973,177.52,177.51,0.06]
[1754710420000,66.14433617,177.52,177.51,0.06]
[1754710420196,68.24228195,177.52,177.51,0.06]
[1754710423190,70.50019095,177.52,177.51,0.06]
[1754710424004,68.40224517,177.52,177.51,0.06]
[1754710424205,70.49997703,177.52,177.51,0.06]
[1754710424689,70.49972052,177.52,177.51,0.06]
[1754710426515,68.40224517,177.52,177.51,0.06]
[1754710428123,70.49895482,177.52,177.51,0.06]
[1754710428323,70.49886769,177.52,177.51,0.06]
[1754710428495,68.40224517,177.52,177.51,0.06]
[1754710429311,70.49872052,177.52,177.51,0.06]
[1754710430114,70.49873728,177.52,177.51,0.06]
[1754710430713,68.64590534,177.52,177.51,0.06]
[1754710432725,73.37405583,177.52,177.51,0.06]
[1754710434012,68.64590534,177.52,177.51,0.06]
[1754710435115,73.37405583,177.52,177.51,0.06]
[1754710435721,15.53270028,177.51,177.5,1e-08]
[1754710435923,18.34919239,177.51,177.5,1e-08]
[1754710436129,21.64482825,177.51,177.5,1e-08]
[1754710436321,23.90286525,177.51,177.5,1e-08]
[1754710436800,29.53635068,177.51,177.5,1e-08]
[1754710442233,29.5382762,177.51,177.5,1e-08]
[1754710442412,34.26642669,177.51,177.5,1e-08]
[1754710442611,34.26642669,177.51,177.49,0.06]
[1754710442802,50.59434101,177.5,177.49,0.06]
[1754710443007,51.31434101,177.5,177.49,0.06]
[1754710444405,56.0424915,177.5,177.49,0.06]
[1754710444808,58.3005285,177.5,177.49,0.06]
[1754710446420,53.57237801,177.5,177.49,0.06]
[1754710447313,53.57237801,177.5,177.47,0.06]
[1754710447314,41.39053871,177.48,177.47,0.06]
[1754710447513,0.42648471,177.47,177.43,0.5]
[1754710447716,26.42648471,177.44,177.43,0.5]
[1754710447929,65.56648471,177.44,177.43,0.06]
[1754710448116,65.56648471,177.44,177.43,0.5]
[1754710449418,71.20219255,177.44,177.43,0.5]
[1754710450518,0.28432314,177.44,177.43,3.79563586]
[1754710451618,0.28432314,177.44,177.43,0.5]
[1754710453229,5.92003098,177.44,177.43,0.5]
[1754710453730,5.92003098,177.44,177.43,0.06]
[1754710454132,0.28432314,177.44,177.43,0.5]
[1754710454633,0.28432314,177.44,177.43,3.79563586]
[1754710456744,0.28432314,177.44,177.43,0.5]
[1754710456935,0.28432314,177.44,177.43,3.79563586]
[1754710457338,0.28432314,177.44,177.43,0.5]
[1754710457930,0.28432314,177.44,177.43,0.06]
[1754710458350,5.92003098,177.44,177.43,0.06]
[1754710458717,5.63570784,177.44,177.43,0.06]
[1754710458928,6.29570784,177.44,177.43,0.06]
[1754710459130,5.63570784,177.44,177.43,0.06]
[1754710460126,44.77570784,177.44,177.43,0.06]
[1754710460751,45.06003098,177.44,177.43,0.06]
[1754710461242,45.20219255,177.44,177.43,0.06]
[1754710466418,39.56648471,177.44,177.43,0.06]
[1754710467036,45.20219255,177.44,177.43,0.06]
[1754710467435,45.86219255,177.44,177.43,0.06]
[1754710480575,71.86219255,177.44,177.43,0.06]
[1754710486694,73.96169685,177.44,177.43,0.06]
[1754710491291,77.25733271,177.44,177.43,0.06]
[1754710492187,77.28733271,177.44,177.43,0.06]
[1754710493791,73.99169685,177.44,177.43,0.06]
[1754710493976,77.28733271,177.44,177.43,0.06]
[1754710501978,77.28962328,177.44,177.43,0.06]
[1754710507420,97.11803184,177.44,177.43,0.06]
[1754710507730,71.11803184,177.44,177.43,0.06]
[1754710510916,71.11782992,177.44,177.43,0.06]
[1754710512802,66.39563693,177.44,177.43,0.06]
[1754710513416,67.82622678,177.44,177.43,0.06]
[1754710513910,71.12186264,177.44,177.43,0.06]
[1754710514115,66.39563693,177.44,177.43,0.06]
[1754710517502,63.10000107,177.44,177.43,0.06]
[1754710517702,66.39563693,177.44,177.43,0.06]
[1754710518726,71.11833118,177.44,177.43,0.06]
[1754710518905,66.39563693,177.44,177.43,0.06]
[1754710519221,71.11855035,177.44,177.43,0.06]
[1754710521319,97.11855035,177.44,177.43,0.06]
[1754710521505,53.59642978,177.44,177.43,0.06]
[1754710521702,96.01206564,177.44,177.43,0.06]
[1754710521902,96.43855035,177.44,177.43,0.06]
[1754710522104,97.12855035,177.44,177.43,0.06]
[1754710522704,97.12559473,177.44,177.43,0.06]
[1754710524304,96.43559473,177.44,177.43,0.06]
[1754710525253,97.12559473,177.44,177.43,0.06]
[1754710525738,96.43559473,177.44,177.43,0.06]
[1754710526041,0.14216157,177.42,177.39,3.35563586]
[1754710526233,39.12,177.41,177.39,3.35563586]
[1754710527314,39.12,177.41,177.39,0.06]
[1754710528030,44.75667044,177.41,177.39,0.06]
[1754710529627,44.75667044,177.41,177.39,0.12]
[1754710529831,39.12,177.41,177.39,0.12]
[1754710531331,39.12,177.41,177.39,0.06]
[1754710533935,0.28432314,177.41,177.39,0.06]
[1754710534137,39.12,177.4,177.39,0.06]
[1754710536208,39.84,177.4,177.39,0.06]
[1754710539140,45.47697857,177.4,177.39,0.06]
[1754710544050,39.84,177.4,177.39,0.06]
[1754710544225,39.12,177.4,177.39,0.06]
[1754710547635,39.12,177.4,177.39,3.35563586]
[1754710549226,39.12,177.4,177.39,0.06]
[1754710551441,39.12,177.4,177.39,3.35563586]
[1754710552838,39.1,177.41,177.39,3.35563586]
[1754710553045,39.1,177.41,177.4,3.29563586]
[1754710553351,39.1,177.41,177.39,3.35563586]
[1754710554026,39.82,177.41,177.39,3.35563586]
[1754710555432,0.72,177.4,177.39,0.06]
[1754710559637,39.82,177.41,177.39,3.35563586]
[1754710561658,39.1,177.41,177.39,3.35563586]
[1754710562028,39.82,177.41,177.39,3.35563586]
[1754710564650,39.52648471,177.42,177.39,3.35563586]
[1754710564850,0.67,177.4,177.39,3.35563586]
[1754710572244,0.67,177.4,177.39,0.06]
[1754710580071,1.09648471,177.4,177.39,0.06]
[1754710582472,6.73346328,177.4,177.39,0.06]
[1754710586075,4.72132354,177.43,177.39,3.35563586]
[1754710586369,0.67,177.42,177.41,3.29563586]
[1754710591673,6.30634314,177.42,177.4,3.29563586]
[1754710591883,0.67,177.41,177.39,3.35563586]
[1754710592179,0.67,177.41,177.39,0.06]
[1754710592180,39.08,177.4,177.39,0.06]
[1754710592673,39.75,177.4,177.39,0.06]
[1754710593883,45.38697857,177.4,177.39,0.06]
[1754710597584,45.81346328,177.4,177.39,0.06]
[1754710618579,63.01639653,177.4,177.39,0.06]
[1754710618895,66.31203239,177.4,177.39,0.06]
[1754710619078,66.31198896,177.4,177.39,0.06]
[1754710619283,63.0163531,177.4,177.39,0.06]
[1754710619483,66.31198896,177.4,177.39,0.06]
[1754710622984,71.03461934,177.4,177.39,0.06]
[1754710623897,73.29405934,177.4,177.39,0.06]
[1754710624198,68.93794509,177.4,177.39,0.06]
[1754710624385,71.03420485,177.4,177.39,0.06]
[1754710624699,23.93593861,177.4,177.39,0.06]
[1754710624876,66.31157447,177.4,177.39,0.06]
[1754710627217,66.31112113,177.4,177.39,0.06]
[1754710627702,27.23112113,177.4,177.39,0.06]
[1754710627872,66.31112113,177.4,177.39,0.06]
[1754710628077,63.01548527,177.4,177.39,0.06]
[1754710629892,89.01548527,177.4,177.39,0.06]
[1754710630983,89.01556293,177.4,177.39,0.06]
[1754710636282,93.73144421,177.4,177.39,0.06]
[1754710637504,89.01556293,177.4,177.39,0.06]
[1754710638983,89.01781231,177.4,177.39,0.06]
[1754710640291,93.73369359,177.4,177.39,0.06]
[1754710640913,97.02932945,177.4,177.39,0.06]
[1754710648502,66.31344817,177.4,177.39,0.06]
[1754710650124,68.57288817,177.4,177.39,0.06]
[1754710653618,68.57449042,177.4,177.39,0.06]
[1754710653817,74.8813524,177.4,177.39,0.06]
[1754710654138,68.57449042,177.4,177.39,0.06]
[1754710655909,26.0,177.38,177.37,0.06]
[1754710656132,70.90185628,177.38,177.37,0.06]
[1754710656424,76.31533813,177.38,177.37,0.06]
[1754710656722,78.57490513,177.38,177.37,0.06]
[1754710657902,84.21251929,177.38,177.37,0.06]
[1754710658323,79.48903744,177.38,177.37,0.06]
[1754710659615,84.21160274,177.38,177.37,0.06]
[1754710660009,79.48903744,177.38,177.37,0.06]
[1754710660328,80.9169584,177.38,177.37,0.06]
[1754710660515,83.52259426,177.38,177.37,0.06]
[1754710661522,84.21259426,177.38,177.37,0.06]
[1754710662024,79.48903744,177.38,177.37,0.06]
[1754710662326,45.1328701,177.38,177.37,0.06]
[1754710662528,80.91723424,177.38,177.37,0.06]
[1754710662702,77.54118253,177.38,177.37,0.06]
[1754710662897,78.65766724,177.38,177.37,0.06]
[1754710663102,78.51550567,177.38,177.37,0.06]
[1754710663324,34.02167301,177.38,177.37,0.06]
[1754710663630,73.24383458,177.38,177.37,0.06]
[1754710663807,73.10167301,177.38,177.37,0.06]
[1754710664006,71.14409887,177.38,177.37,0.06]
[1754710664530,81.95328141,177.38,177.37,0.06]
[1754710664831,84.21259441,177.38,177.37,0.06]
[1754710665326,84.21264096,177.38,177.37,0.06]
[1754710665507,81.95332796,177.38,177.37,0.06]
[1754710665707,77.2294953,177.38,177.37,0.06]
[1754710665910,71.14409887,177.38,177.37,0.06]
[1754710666126,73.24398553,177.38,177.37,0.06]
[1754710666733,73.24399257,177.38,177.37,0.06]
[1754710667814,73.93399257,177.38,177.37,0.06]
[1754710668130,73.93397738,177.38,177.37,0.06]
[1754710674170,73.93452494,177.38,177.37,0.06]
[1754710675835,77.2301608,177.38,177.37,0.06]
[1754710676132,73.93452494,177.38,177.37,0.06]
[1754710687272,77.2301608,177.38,177.37,0.06]
[1754710691951,73.93452494,177.38,177.37,0.06]
[1754710693375,34.85452494,177.38,177.37,0.06]
[1754710693668,73.91452494,177.38,177.37,0.06]
[1754710694671,73.22452494,177.38,177.37,0.06]
[1754710694876,71.12409887,177.38,177.37,0.06]
[1754710697163,32.06409887,177.38,177.37,0.06]
[1754710697472,71.12409887,177.38,177.37,0.06]
[1754710700564,71.82409887,177.38,177.37,0.06]
[1754710702375,73.92433425,177.38,177.37,0.06]
[1754710702882,71.82409887,177.38,177.37,0.06]
[1754710704183,73.92408167,177.38,177.37,0.06]
[1754710711287,78.64791433,177.38,177.37,0.06]
[1754710711481,82.00355033,177.38,177.37,0.06]
[1754710716766,77.27971767,177.38,177.37,0.06]
[1754710720088,82.00355033,177.38,177.37,0.06]
[1754710720292,77.27971767,177.38,177.37,0.06]
[1754710725289,82.00355033,177.38,177.37,0.06]
[1754710727097,77.27971767,177.38,177.37,0.06]
[1754710732803,82.00355033,177.38,177.37,0.06]
[1754710732977,77.27971767,177.38,177.37,0.06]
[1754710733477,82.00355033,177.38,177.37,0.06]
[1754710734888,77.27971767,177.38,177.37,0.06]
[1754710737683,77.28086654,177.38,177.37,0.06]
[1754710740397,75.17973487,177.38,177.37,0.06]
[1754710741104,75.15973487,177.38,177.37,0.06]
[1754710741488,77.26109432,177.38,177.37,0.06]
[1754710742590,77.26107709,177.38,177.37,0.06]
[1754710745293,31.88346293,177.38,177.37,0.06]
[1754710745498,31.88346293,177.38,177.37,3.35563586]
[1754710745499,44.92346293,177.38,177.37,3.35563586]
[1754710745818,42.82212071,177.38,177.37,3.47563586]
[1754710745998,39.32432314,177.38,177.37,3.47563586]
[1754710746203,0.28432314,177.38,177.37,3.35563586]
[1754710746404,39.32432314,177.38,177.37,3.35563586]
[1754710747292,0.28432314,177.38,177.37,3.35563586]
[1754710747506,39.32432314,177.38,177.37,3.35563586]
[1754710747811,0.03,177.39,177.37,3.47563586]
[1754710747997,0.03,177.39,177.38,3.41563586]
[1754710748201,39.21216157,177.39,177.38,3.41563586]
[1754710748505,39.35432314,177.39,177.38,3.41563586]
[1754710748818,39.35432314,177.39,177.38,3.29563586]
[1754710753815,39.07,177.39,177.38,3.29563586]
[1754710754599,0.03,177.39,177.38,3.41563586]
[1754710758002,0.03,177.39,177.38,9.05325002]
[1754710758402,22.10317794,177.4,177.38,22.23579346]
[1754710758611,0.03,177.41,177.39,16.5981793]
[1754710758805,0.03,177.43,177.42,26.0]
[1754710759022,0.03,177.44,177.42,29.29563586]
[1754710759244,0.03,177.44,177.43,3.41563586]
[1754710759404,0.03,177.44,177.43,5.67316286]
[1754710760024,0.03,177.44,177.43,6.2367654]
[1754710760212,0.03,177.45,177.43,6.2367654]
[1754710760419,0.03,177.45,177.44,9.0513437]
[1754710767818,0.72,177.45,177.43,28.257527]
[1754710768017,0.72,177.45,177.4,39.02]
[1754710768018,0.03,177.45,177.41,5.63662234]
[1754710768223,0.03,177.45,177.44,3.29563586]
[1754710769214,0.72,177.45,177.44,3.29563586]
[1754710772649,0.72,177.45,177.4,44.65694566]
[1754710772650,0.28432314,177.44,177.41,3.29563586]
[1754710772828,0.69,177.43,177.4,3.29563586]
[1754710773141,0.69,177.43,177.41,3.29563586]
[1754710774337,0.7,177.42,177.41,3.29563586]
[1754710778643,0.73,177.45,177.41,3.29563586]
[1754710778934,0.73,177.45,177.4,0.12]
[1754710778935,0.73,177.45,177.43,3.29563586]
[1754710780944,0.73,177.45,177.44,3.29563586]
[1754710782321,0.73,177.45,177.43,3.29563586]
[1754710784333,0.73,177.45,177.44,3.29563586]
[1754710789271,0.73,177.45,177.43,3.29563586]
[1754710789624,0.73,177.45,177.42,5.63629031]
[1754710789820,0.73,177.45,177.42,8.93192617]
[1754710790254,0.73,177.45,177.43,3.29563586]
[1754710791052,0.73,177.45,177.42,5.63629031]
[1754710791053,0.73,177.45,177.42,3.29563586]
[1754710792452,0.73,177.45,177.43,0.06]
[1754710796370,0.73,177.45,177.43,3.35563586]
[1754710796563,0.73,177.45,177.43,0.06]
[1754710798148,0.73,177.45,177.43,3.35563586]
[1754710802469,0.03,177.45,177.43,3.35563586]
[1754710802762,0.73,177.45,177.43,3.35563586]
[1754710805144,0.03,177.45,177.43,3.35563586]
[1754710805468,0.69,177.44,177.43,3.35563586]
[1754710805862,0.72,177.45,177.43,3.35563586]
[1754710808367,0.03,177.45,177.44,3.29563586]
[1754710808756,0.72,177.45,177.44,3.29563586]
[1754710809353,0.03,177.45,177.44,3.29563586]
[1754710809548,0.72,177.45,177.44,3.29563586]
[1754710812363,0.72,177.45,177.43,3.35563586]
[1754710812564,0.69,177.44,177.43,3.35563586]
[1754710812864,0.69,177.44,177.43,0.06]
[1754710813059,0.69,177.44,177.43,3.35563586]
[1754710813868,0.69,177.44,177.43,0.06]
[1754710814574,0.03,177.45,177.43,0.06]
[1754710814880,0.72,177.45,177.43,0.06]
[1754710815291,0.72,177.45,177.43,3.35563586]
[1754710815583,0.03,177.45,177.43,3.35563586]
[1754710815969,0.03,177.45,177.44,3.29563586]
[1754710817684,0.72,177.45,177.44,3.29563586]
[1754710817979,0.72,177.45,177.43,0.06]
[1754710818170,0.72,177.45,177.44,3.29563586]
[1754710829907,0.72,177.45,177.43,8.99165534]
[1754710835526,0.72,177.45,177.43,0.06]
[1754710835731,0.72,177.45,177.43,3.35563586]
[1754710837423,0.72,177.45,177.44,3.29563586]
[1754710839113,0.03,177.45,177.44,3.29563586]
[1754710839322,0.03,177.45,177.44,8.9313437]
[1754710839807,0.03,177.45,177.44,3.29563586]
[1754710841512,0.75,177.45,177.43,0.06]
[1754710841710,0.75,177.45,177.44,3.29563586]
[1754710845224,0.03,177.45,177.44,3.29563586]
[1754710846717,0.75,177.45,177.44,3.29563586]
[1754710850607,0.03,177.45,177.44,3.29563586]
[1754710853701,0.75,177.45,177.44,3.29563586]
[1754710857833,0.75,177.45,177.44,3.35563586]
[1754710865233,0.75,177.45,177.44,0.06]
[1754710870234,0.03,177.45,177.44,3.35563586]
[1754710872639,0.03,177.45,177.44,8.9913437]
[1754710885732,0.71,177.45,177.44,5.69570784]
[1754710885950,0.71,177.45,177.44,8.9913437]
[1754710889364,0.71,177.45,177.44,0.06]
[1754710889558,0.71,177.45,177.44,3.35563586]
[1754710892868,0.71,177.45,177.44,0.06]
[1754710898666,0.71,177.45,177.44,3.35563586]
[1754710898868,0.71,177.45,177.44,0.06]
[1754710906760,0.03,177.45,177.44,3.35563586]
[1754710907162,0.03,177.45,177.44,0.06]
[1754710907357,0.03,177.45,177.44,3.35563586]
[1754710908278,0.03,177.45,177.44,8.9913437]
[1754710911080,0.03,177.45,177.44,5.69570784]
[1754710911267,0.03,177.45,177.44,8.9913437]
[1754710913560,0.74,177.45,177.44,0.06]
[1754710914088,0.74,177.45,177.44,3.35563586]
[1754710914559,0.74,177.45,177.44,0.06]
[1754710914758,0.74,177.45,177.44,3.35563586]
[1754710915286,0.74,177.45,177.44,0.06]
[1754710915969,0.74,177.45,177.43,0.06]
[1754710915970,0.42648471,177.44,177.43,0.06]
[1754710916480,10.06782841,177.44,177.43,0.06]
[1754710917691,6.77219255,177.44,177.42,0.06]
[1754710917872,4.289959,177.43,177.42,0.06]
[1754710918183,19.53833614,177.43,177.42,0.06]
[1754710918380,32.0039502,177.43,177.42,0.06]
[1754710918587,29.53117888,177.43,177.42,0.06]
[1754710918790,29.53117888,177.43,177.42,1e-08]
[1754710919290,34.24623533,177.43,177.42,1e-08]
[1754710919477,73.58623533,177.43,177.42,1e-08]